fUSD/lending_fUSD_20250916
["ID","MTS","AMOUNT","RATE_DAILY","PERIOD"]
[385852934,1758060632990,-500.0,0.00024773,2]
[385852936,1758060632998,-500.0,0.00024773,2]
[385852938,1758060633008,-176.51266918,0.00024773,2]
[385852940,1758060633017,-500.0,0.00024773,2]
[385852942,1758060633027,-503.94827961,0.00024773,2]
[385852944,1758060633037,-500.0,0.00024773,2]
[385852946,1758060633046,-500.0,0.00024773,2]
[385852948,1758060633055,-605.42614682,0.00024873,2]
[385852950,1758060633065,-500.0,0.00024873,2]
[385852952,1758060633074,-456.54438607,0.0002489,2]
[385852954,1758060633083,-13955.70786949,0.000249,2]
[385852956,1758060633093,-151.44,0.00024968,2]
[385852958,1758060633103,-171.0,0.00025,7]
[385852960,1758060633112,-1000.0,0.00025321,2]
[385852962,1758060633121,-500.0,0.00025321,2]
[385852964,1758060633130,-1002.95861149,0.00025321,2]
[385852966,1758060633139,-151.44,0.000258,2]
[385852967,1758060633151,-1500.0,0.00025868,2]
[385852969,1758060633161,-171.0,0.0002589,7]
[385852971,1758060633170,-666.0,0.0002597,3]
[385852973,1758060633179,-17918.54,0.0002597,2]
[385852975,1758060633188,-29428.64,0.00026408,2]
[385852978,1758060633198,-1246.17716835,0.00026416,2]
[385852980,1758060633207,-1046.49,0.00026614,2]
[385852982,1758060633216,-151.44,0.00026633,2]
[385852983,1758060633226,-3945.5,0.00026648,2]
[385852986,1758060633236,-658.61,0.00026695,2]
[385852988,1758060633246,-200.02,0.0002671,2]
[385852990,1758060633255,-250.75,0.00026714,2]
[385852992,1758060633264,-160.87,0.00026721,2]
[385852994,1758060633273,-151.0,0.0002673,2]
[385852996,1758060633283,-200.0,0.00026754,2]
[385852998,1758060633292,-150.0,0.0002677,7]
[385853000,1758060633301,-200.0,0.0002678,2]
[385853002,1758060633310,-198.48,0.00026875,3]
[385853004,1758060633319,-158.60421919,0.00026895,2]
[385853005,1758060633328,-1604.48,0.00026995,2]
[385853008,1758060633338,-2751.0,0.00027055,2]
[385853010,1758060633348,-2066.8,0.00027071,7]
[385853011,1758060633357,-150.0,0.0002715,2]
[385853014,1758060633367,-175.0,0.00027185,7]
[385853015,1758060633376,-1052.51,0.00027197,2]
[385853018,1758060633386,-151.13,0.00027425,30]
[385853020,1758060633395,-151.44,0.00027465,2]
[385853022,1758060633406,-166.66,0.00027884,2]
[385853024,1758060633416,-1046.49,0.00027945,2]
[385853025,1758060633425,-151.44,0.00028297,2]
[385853027,1758060633435,-10225.16,0.00028299,2]
[385853029,1758060633444,-250.0,0.00028312,2]
[385853032,1758060633453,-209.0,0.00028522,2]
[385853034,1758060633463,-1000.0,0.00028618,2]
[385853036,1758060633473,-863.14,0.00028627,2]
[385853037,1758060633482,-8778.42,0.00028702,2]
[385853039,1758060633491,-500.0,0.000288,5]
[385853041,1758060633500,-500.0,0.000288,5]
[385853043,1758060633510,-500.0,0.000288,5]
[385853045,1758060633520,-500.55745387,0.000288,5]
[385853047,1758060633529,-252.0,0.00028805,2]
[385853050,1758060633539,-3622.64592301,0.00028861,2]
[385853051,1758060633548,-8909.63872655,0.00028862,2]
[385853067,1758060633711,-10678.08613532,0.00028862,2]
[385853068,1758060633724,-12736.60513813,0.00028862,2]
[385853069,1758060633733,-500.0,0.00028873,5]
[385853070,1758060633743,-500.0,0.00028873,5]
[385853071,1758060633753,-500.0,0.00028873,5]
[385853072,1758060633763,-502.54718574,0.00028873,5]
[385853073,1758060633773,-500.0,0.00028873,5]
[385853074,1758060633783,-500.0,0.00028873,5]
[385853075,1758060633793,-200.0,0.00028873,5]
[385853076,1758060633802,-500.0,0.00028873,5]
[385853077,1758060633811,-500.51915796,0.00028873,5]
[385853078,1758060633821,-500.52713385,0.00028873,5]
[385853079,1758060633831,-500.0,0.00028873,5]
[385853080,1758060633840,-500.0,0.00028873,5]
[385853081,1758060633850,-500.0,0.00028873,5]
[385853082,1758060633859,-500.0,0.00028873,5]
[385853083,1758060633869,-500.0,0.00028873,5]
[385853084,1758060633878,-500.0,0.00028873,5]
[385853085,1758060633887,-500.0,0.00028873,5]
[385853086,1758060633897,-500.0,0.00028873,5]
[385853087,1758060633906,-500.0,0.00028873,5]
[385853088,1758060633915,-168.88811953,0.0002908,5]
[385853089,1758060633925,-500.0,0.0002908,5]
[385853090,1758060633934,-479.8759678,0.0002908,5]
[385853091,1758060633943,-5000.0,0.00029106,2]
[385853092,1758060633953,-500.0,0.0002917,5]
[385853093,1758060633962,-502.8712681,0.0002917,5]
[385853094,1758060633972,-408.19902217,0.0002917,5]
[385853095,1758060633981,-500.0,0.0002917,5]
[385853096,1758060633990,-1046.49,0.00029276,2]
[385853097,1758060633999,-1000.0,0.00029348,5]
[385853098,1758060634008,-1000.0,0.00029348,5]
[385853099,1758060634018,-229.04773594,0.00029421,5]
[385853100,1758060634027,-1001.65704954,0.00029421,5]
[385853101,1758060634037,-1000.0,0.00029421,5]
[385853102,1758060634046,-1000.0,0.00029421,5]
[385853103,1758060634056,-1000.0,0.00029421,5]
[385853104,1758060634065,-503.36841492,0.00029421,5]
[385853105,1758060634074,-1001.92277488,0.00029421,5]
[385853106,1758060634083,-1000.0,0.00029421,5]
[385853107,1758060634093,-1000.0,0.00029421,5]
[385853108,1758060634103,-1000.0,0.00029421,5]
[385853109,1758060634112,-1000.0,0.00029421,5]
[385853110,1758060634121,-1000.0,0.00029421,5]
[385853111,1758060634130,-502.04181667,0.00029421,5]
[385853112,1758060634139,-3552.10853854,0.00029572,2]
[385853113,1758060634151,-1006.97805512,0.00029628,5]
[385853114,1758060634169,-200.0,0.00029699,2]
[385853115,1758060634178,-1000.0,0.00029718,5]
[385853116,1758060634187,-1000.0,0.00029718,5]
[385853117,1758060634197,-155.01,0.00029744,2]
[385853118,1758060634207,-400.0,0.00029832,5]
[385853119,1758060634216,-1093.88442829,0.00029876,5]
[385853120,1758060634225,-1251.88420753,0.00029896,5]
[385853121,1758060634234,-1500.0,0.00029896,5]
[385853122,1758060634243,-171.0,0.00029903,14]
[385853123,1758060634253,-773.43966844,0.00029968,5]
[385853124,1758060634263,-1500.0,0.00029968,5]
[385853125,1758060634272,-1500.0,0.00029968,5]
[385853126,1758060634282,-1500.0,0.00029968,5]
[385853127,1758060634292,-503.5670559,0.00029968,5]
[385853128,1758060634302,-1504.33985302,0.00029968,5]
[385853129,1758060634312,-1500.0,0.00029968,5]
[385853130,1758060634321,-2500.0,0.00030073,2]
[385853131,1758060634330,-341.2142,0.00030073,2]
[385853132,1758060634340,-402.07,0.000301,2]
[385853133,1758060634349,-522.76,0.00030126,2]
[385853134,1758060634358,-400.0,0.00030136,6]
[385853135,1758060634368,-400.0,0.00030136,6]
[385853136,1758060634377,-400.0,0.00030136,6]
[385853137,1758060634386,-400.0,0.00030136,6]
[385853138,1758060634397,-400.0,0.00030136,6]
[385853139,1758060634406,-400.0,0.00030136,6]
[385853140,1758060634415,-400.0,0.00030136,6]
[385853141,1758060634425,-427.12946303,0.00030136,6]
[385853142,1758060634437,-400.0,0.00030136,6]
[385853143,1758060634447,-400.0,0.00030136,6]
[385853144,1758060634456,-400.0,0.00030136,6]
[385853145,1758060634466,-400.0,0.00030136,6]
[385853146,1758060634475,-400.0,0.00030136,6]
[385853147,1758060634484,-400.0,0.00030136,6]
[385853148,1758060634493,-400.0,0.00030136,6]
[385853149,1758060634502,-400.0,0.00030136,6]
[385853150,1758060634511,-466.24035249,0.00030136,6]
[385853151,1758060634520,-400.0,0.00030136,6]
[385853152,1758060634529,-400.0,0.00030136,6]
[385853153,1758060634538,-400.0,0.00030136,6]
[385853154,1758060634547,-400.0,0.00030136,6]
[385853155,1758060634556,-400.0,0.00030136,6]
[385853156,1758060634565,-400.0,0.00030136,6]
[385853157,1758060634574,-400.0,0.00030136,6]
[385853158,1758060634583,-400.0,0.00030136,6]
[385853159,1758060634592,-400.0,0.00030136,6]
[385853160,1758060634601,-400.0,0.00030136,6]
[385853161,1758060634611,-400.0,0.00030136,5]
[385853162,1758060634619,-400.0,0.00030136,6]
[385853163,1758060634629,-400.0,0.00030136,6]
[385853164,1758060634638,-400.0,0.00030136,6]
[385853165,1758060634647,-400.0,0.00030136,6]
[385853166,1758060634656,-400.0,0.00030136,6]
[385853167,1758060634666,-400.0,0.00030136,6]
[385853168,1758060634675,-400.0,0.00030136,6]
[385853169,1758060634684,-400.0,0.00030136,6]
[385853170,1758060634693,-400.0,0.00030136,6]
[385853171,1758060634703,-400.0,0.00030136,6]
[385853172,1758060634715,-400.0,0.00030136,6]
[385853173,1758060634724,-400.0,0.00030136,6]
[385853174,1758060634734,-400.0,0.00030136,6]
[385853175,1758060634743,-428.5,0.00030136,6]
[385853176,1758060634753,-400.0,0.00030136,6]
[385853177,1758060634762,-543.92,0.00030136,6]
[385853178,1758060634771,-400.0,0.00030136,6]
[385853179,1758060634780,-400.0,0.00030136,6]
[385853180,1758060634789,-400.0,0.00030136,6]
[385853181,1758060634799,-400.0,0.00030136,6]
[385853182,1758060634807,-400.0,0.00030136,6]
[385853183,1758060634922,-400.0,0.00030136,6]
[385853184,1758060634932,-400.0,0.00030136,6]
[385853185,1758060634941,-400.0,0.00030136,6]
[385853186,1758060634950,-400.0,0.00030136,6]
[385853187,1758060634959,-400.0,0.00030136,6]
[385853188,1758060634968,-400.0,0.00030136,6]
[385853189,1758060634977,-400.0,0.00030136,6]
[385853190,1758060634986,-400.0,0.00030136,6]
[385853191,1758060634995,-400.0,0.00030136,6]
[385853192,1758060635005,-400.0,0.00030136,6]
[385853193,1758060635014,-400.0,0.00030136,6]
[385853194,1758060635023,-171.43,0.00030145,2]
[385853195,1758060635032,-500.2874685,0.00030173,5]
[385853196,1758060635041,-500.0,0.00030173,5]
[385853197,1758060635050,-500.0,0.00030173,5]
[385853198,1758060635059,-500.0,0.00030173,5]
[385853199,1758060635068,-500.0,0.00030173,5]
[385853200,1758060635077,-383.89662389,0.00030173,5]
[385853201,1758060635090,-116.10337611,0.00030173,5]
[385853202,1758060635099,-271.41817218,0.00030173,5]
[385853203,1758060635108,-500.0,0.00030173,5]
[385853204,1758060635117,-508.61265225,0.00030173,5]
[385853205,1758060635126,-686.55226769,0.00030266,5]
[385853206,1758060635135,-1330.22672326,0.00030266,5]
[385853207,1758060635144,-5000.0,0.0003031,2]
[385853208,1758060635157,-522.76,0.00030399,2]
[385853209,1758060635166,-400.0,0.00030407,6]
[385853210,1758060635175,-400.0,0.00030408,6]
[385853211,1758060635184,-400.0,0.00030408,6]
[385853212,1758060635194,-400.0,0.00030408,6]
[385853213,1758060635203,-400.0,0.00030408,6]
[385853214,1758060635212,-400.0,0.00030408,6]
[385853215,1758060635222,-400.0,0.00030408,6]
[385853216,1758060635233,-400.0,0.00030408,6]
[385853217,1758060635243,-400.0,0.00030408,6]
[385853218,1758060635252,-400.0,0.00030408,6]
[385853219,1758060635261,-400.0,0.00030408,6]
[385853220,1758060635270,-400.0,0.00030408,6]
[385853221,1758060635279,-400.0,0.00030408,6]
[385853222,1758060635288,-400.0,0.00030408,6]
[385853223,1758060635297,-355.35,0.00030408,6]
[385853224,1758060635306,-400.0,0.00030408,6]
[385853225,1758060635315,-400.0,0.00030408,6]
[385853226,1758060635325,-400.0,0.00030409,6]
[385853227,1758060635335,-400.0,0.00030409,6]
[385853228,1758060635344,-400.0,0.00030409,6]
[385853229,1758060635353,-401.20761237,0.00030409,6]
[385853230,1758060635362,-400.0,0.00030409,6]
[385853231,1758060635371,-404.94804636,0.00030409,6]
[385853232,1758060635380,-166.14323534,0.00030409,6]
[385853233,1758060635389,-400.0,0.00030409,6]
[385853234,1758060635398,-400.0,0.00030409,6]
[385853235,1758060635407,-400.0,0.00030409,6]
[385853236,1758060635417,-400.0,0.00030409,6]
[385853237,1758060635426,-400.0,0.00030409,6]
[385853238,1758060635435,-400.0,0.00030409,6]
[385853239,1758060635444,-530.68297368,0.00030409,6]
[385853240,1758060635454,-401.56105254,0.00030409,6]
[385853241,1758060635465,-400.0,0.00030409,6]
[385853242,1758060635476,-400.0,0.00030409,6]
[385853243,1758060635485,-400.0,0.00030409,6]
[385853244,1758060635494,-400.0,0.00030409,6]
[385853245,1758060635505,-400.0,0.00030409,6]
[385853246,1758060635516,-520.63,0.00030409,6]
[385853247,1758060635526,-400.0,0.00030409,6]
[385853248,1758060635537,-401.50579613,0.00030409,6]
[385853249,1758060635548,-808.39,0.00030409,6]
[385853250,1758060635558,-400.0,0.00030409,6]
[385853251,1758060635567,-474.90921343,0.00030409,6]
[385853252,1758060635577,-500.0,0.00030409,6]
[385853253,1758060635586,-400.0,0.00030409,6]
[385853254,1758060635595,-400.0,0.00030409,6]
[385853255,1758060635605,-400.0,0.00030409,6]
[385853256,1758060635614,-400.0,0.00030409,6]
[385853257,1758060635625,-400.0,0.00030409,6]
[385853258,1758060635635,-400.0,0.00030409,6]
[385853259,1758060635645,-163.70136911,0.00030409,6]
[385853260,1758060635654,-400.0,0.00030409,6]
[385853261,1758060635663,-400.0,0.00030409,6]
[385853262,1758060635674,-400.0,0.00030409,6]
[385853263,1758060635683,-400.0,0.00030409,6]
[385853264,1758060635693,-400.0,0.00030409,6]
[385853265,1758060635703,-400.0,0.00030409,6]
[385853266,1758060635712,-400.0,0.00030409,6]
[385853267,1758060635722,-400.0,0.00030409,6]
[385853268,1758060635731,-400.0,0.00030409,6]
[385853269,1758060635740,-400.0,0.00030409,6]
[385853270,1758060635750,-400.0,0.00030409,6]
[385853271,1758060635759,-400.0,0.00030409,6]
[385853272,1758060635770,-400.0,0.00030409,6]
[385853273,1758060635781,-400.0,0.00030409,6]
[385853274,1758060635790,-400.0,0.00030409,6]
[385853275,1758060635801,-400.0,0.00030409,6]
[385853276,1758060635810,-400.57776706,0.00030409,6]
[385853277,1758060635819,-400.0,0.00030409,6]
[385853278,1758060635829,-400.0,0.00030409,6]
[385853279,1758060635838,-400.0,0.00030409,6]
[385853280,1758060635848,-400.0,0.00030409,6]
[385853281,1758060635858,-400.0,0.00030409,3]
[385853282,1758060635867,-400.0,0.00030409,6]
[385853283,1758060635877,-401.94,0.00030409,6]
[385853284,1758060635889,-400.0,0.00030409,6]
[385853285,1758060635900,-400.0,0.00030409,6]
[385853286,1758060635910,-400.0,0.00030409,6]
[385853287,1758060635919,-400.0,0.00030409,6]
[385853288,1758060635929,-400.0,0.0003041,6]
[385853289,1758060635939,-400.0,0.0003041,6]
[385853290,1758060635950,-400.0,0.0003041,6]
[385853291,1758060635960,-400.0,0.0003041,6]
[385853292,1758060635970,-400.0,0.0003041,6]
[385853293,1758060635979,-400.0,0.0003041,6]
[385853294,1758060635989,-400.0,0.0003041,6]
[385853295,1758060635998,-267.26249803,0.0003041,6]
[385853296,1758060636007,-400.0,0.0003041,6]
[385853297,1758060636016,-400.0,0.0003041,6]
[385853298,1758060636026,-400.0,0.0003041,6]
[385853299,1758060636035,-400.0,0.0003041,6]
[385853300,1758060636044,-400.0,0.0003041,6]
[385853301,1758060636054,-400.0,0.0003041,6]
[385853302,1758060636063,-400.0,0.0003041,6]
[385853303,1758060636072,-400.0,0.0003041,6]
[385853304,1758060636081,-400.0,0.0003041,6]
[385853305,1758060636091,-400.0,0.0003041,6]
[385853306,1758060636100,-400.0,0.0003041,6]
[385853307,1758060636112,-400.0,0.0003041,6]
[385853308,1758060636122,-404.71132684,0.0003041,6]
[385853309,1758060636133,-400.0,0.0003041,6]
[385853310,1758060636143,-400.0,0.0003041,6]
[385853311,1758060636157,-400.0,0.0003041,6]
[385853312,1758060636167,-400.0,0.0003041,6]
[385853313,1758060636177,-400.0,0.0003041,5]
[385853314,1758060636186,-547.7583293,0.0003041,6]
[385853315,1758060636196,-400.0,0.0003041,6]
[385853316,1758060636205,-400.0,0.0003041,6]
[385853317,1758060636215,-400.0,0.0003041,6]
[385853318,1758060636228,-400.0,0.0003041,6]
[385853319,1758060636238,-400.0,0.0003041,6]
[385853320,1758060636248,-400.0,0.0003041,6]
[385853321,1758060636257,-400.0,0.0003041,6]
[385853322,1758060636266,-400.0,0.0003041,6]
[385853323,1758060636275,-400.0,0.0003041,6]
[385853324,1758060636285,-238.02,0.0003041,6]
[385853325,1758060636294,-428.5,0.0003041,6]
[385853326,1758060636303,-400.0,0.0003041,6]
[385853327,1758060636312,-400.0,0.0003041,6]
[385853328,1758060636322,-400.0,0.0003041,6]
[385853329,1758060636331,-400.0,0.0003041,6]
[385853330,1758060636341,-400.0,0.0003041,6]
[385853331,1758060636350,-400.0,0.0003041,6]
[385853332,1758060636359,-400.0,0.0003041,6]
[385853333,1758060636368,-400.0,0.0003041,6]
[385853334,1758060636377,-400.0,0.0003041,6]
[385853335,1758060636386,-400.0,0.0003041,6]
[385853336,1758060636395,-400.0,0.0003041,6]
[385853337,1758060636405,-400.0,0.0003041,6]
[385853338,1758060636415,-400.0,0.0003041,6]
[385853339,1758060636423,-400.0,0.0003041,6]
[385853340,1758060636433,-400.0,0.0003041,6]
[385853341,1758060636443,-400.0,0.0003041,6]
[385853342,1758060636452,-400.0,0.0003041,6]
[385853343,1758060636461,-522.99,0.0003041,2]
[385853344,1758060636470,-3552.10853851,0.00030428,2]
[385853345,1758060636480,-2000.0,0.00030444,5]
[385853346,1758060636489,-500.0,0.00030473,5]
[385853347,1758060636501,-150.0,0.00030473,5]
[385853348,1758060636510,-150.0,0.00030473,5]
[385853349,1758060636522,-500.0,0.00030473,5]
[385853350,1758060636532,-522.76,0.00030506,2]
[385853351,1758060636543,-1505.85000884,0.00030516,5]
[385853352,1758060636554,-2000.0,0.00030516,5]
[385853353,1758060636564,-506.54910798,0.00030516,5]
[385853354,1758060636573,-2000.0,0.00030516,5]
[385853355,1758060636582,-1548.03233085,0.00030584,2]
[385853356,1758060636596,-514.89339417,0.00030584,2]
[385853357,1758060636606,-1046.49,0.00030606,2]
[385853358,1758060636615,-237.65,0.0003062,30]
[385853359,1758060636624,-400.0,0.00030644,6]
[385853360,1758060636633,-400.0,0.00030644,6]
[385853361,1758060636643,-2.17861353,0.00030644,6]
[385853362,1758060636672,-397.82138647,0.00030644,6]
[385853363,1758060636683,-193.12183763,0.00030644,6]
[385853364,1758060636695,-206.87816237,0.00030644,6]
[385853365,1758060636705,-400.0,0.00030644,6]
[385853366,1758060636716,-400.0,0.00030644,6]
[385853367,1758060636727,-400.0,0.00030644,6]
[385853368,1758060636737,-621.24,0.00030644,6]
[385853369,1758060636746,-197.20588014,0.00030644,6]
[385853370,1758060636756,-108.99792831,0.00030644,6]
[385853371,1758060636769,-291.00207169,0.00030644,6]
[385853372,1758060636778,-134.99792831,0.00030644,6]
[385853373,1758060636790,-265.00207169,0.00030644,6]
[385853374,1758060636799,-400.0,0.00030644,6]
[385853375,1758060636809,-550.82,0.00030644,6]
[385853376,1758060636819,-400.0,0.00030644,6]
[385853377,1758060636829,-400.0,0.00030644,6]
[385853378,1758060636839,-400.0,0.00030644,6]
[385853379,1758060636849,-400.0,0.00030644,6]
[385853380,1758060636860,-400.0,0.00030644,6]
[385853381,1758060636869,-400.0,0.00030644,6]
[385853382,1758060636878,-400.0,0.00030644,6]
[385853383,1758060636887,-400.0,0.00030644,6]
[385853384,1758060636896,-400.0,0.00030644,6]
[385853385,1758060636906,-400.0,0.00030644,6]
[385853386,1758060636915,-400.0,0.00030644,6]
[385853387,1758060636924,-400.0,0.00030644,6]
[385853388,1758060636933,-400.0,0.00030644,6]
[385853389,1758060636942,-400.0,0.00030644,6]
[385853390,1758060636951,-400.0,0.00030644,6]
[385853391,1758060636961,-400.0,0.00030644,6]
[385853392,1758060636969,-400.0,0.00030644,6]
[385853393,1758060636978,-400.0,0.00030644,6]
[385853394,1758060636987,-400.0,0.00030644,6]
[385853395,1758060636996,-400.0,0.00030644,6]
[385853396,1758060637005,-400.0,0.00030644,6]
[385853397,1758060637014,-81.80474276,0.00030644,6]
[385853398,1758060637025,-318.19525724,0.00030644,6]
[385853399,1758060637034,-400.0,0.00030644,6]
[385853400,1758060637046,-277.92929294,0.00030644,6]
[385853401,1758060637087,-1680.19070706,0.00030644,6]
[385853402,1758060637097,-400.0,0.00030644,6]
[385853403,1758060637106,-400.0,0.00030644,6]
[385853404,1758060637115,-400.0,0.00030644,6]
[385853405,1758060637124,-400.0,0.00030644,6]
[385853406,1758060637133,-449.58,0.00030644,6]
[385853407,1758060637142,-264.24020343,0.00030644,6]
[385853408,1758060637154,-400.0,0.00030644,6]
[385853409,1758060637164,-400.0,0.00030644,6]
[385853410,1758060637174,-400.0,0.00030644,6]
[385853411,1758060637183,-400.0,0.00030644,6]
[385853412,1758060637192,-400.0,0.00030644,6]
[385853413,1758060637203,-400.0,0.00030644,6]
[385853414,1758060637213,-400.0,0.00030644,6]
[385853415,1758060637223,-192.01925343,0.00030644,6]
[385853416,1758060637458,-400.0,0.00030644,6]
[385853417,1758060637474,-400.0,0.00030644,6]
[385853418,1758060637485,-400.0,0.00030644,6]
[385853419,1758060637494,-400.0,0.00030644,6]
[385853420,1758060637503,-2089.57065346,0.0003065,26]
[385853421,1758060637519,-602.75134654,0.0003065,26]
[385853422,1758060637528,-182.732,0.0003065,26]
[385853423,1758060637537,-3296.83998544,0.00030672,3]
[385853424,1758060637549,-910.77150607,0.00030672,3]
[385853425,1758060637559,-4207.61149151,0.00030673,3]
[385853426,1758060637568,-213.1401216,0.00030673,3]
[385853427,1758060637578,-12622.8344745,0.00030674,3]
[385853428,1758060637587,-160.0,0.00030674,3]
[385853429,1758060637597,-515.95536276,0.00030674,3]
[385853430,1758060637606,-500.0,0.00030676,11]
[385853431,1758060637616,-500.0,0.00030676,11]
[385853432,1758060637626,-500.0,0.00030676,11]
[385853433,1758060637635,-500.0,0.00030676,11]
[385853434,1758060637644,-500.0,0.00030676,11]
[385853435,1758060637654,-500.0,0.00030676,11]
[385853436,1758060637664,-500.0,0.00030676,11]
[385853437,1758060637673,-500.0,0.00030676,11]
[385853438,1758060637682,-400.0,0.00030681,6]
[385853439,1758060637692,-478.77334497,0.00030682,6]
[385853440,1758060637701,-400.0,0.00030682,6]
[385853441,1758060637712,-400.0,0.00030682,6]
[385853442,1758060637722,-400.0,0.00030682,6]
[385853443,1758060637732,-378.91118988,0.00030682,6]
[385853452,1758060637904,-1015.61126154,0.00029802,5]
[385853453,1758060637914,-1117.64486318,0.00029802,5]
[385853454,1758060637924,-400.0,0.00030136,6]
[385853455,1758060637935,-400.0,0.0003041,6]
[385853456,1758060637944,-21.08881012,0.00030682,6]
[385853457,1758060637954,-400.0,0.00030682,6]
[385853458,1758060637964,-400.0,0.00030682,6]
[385853459,1758060637974,-400.0,0.00030682,6]
[385853460,1758060637983,-400.0,0.00030682,6]
[385853461,1758060637992,-400.0,0.00030682,6]
[385853462,1758060638001,-400.0,0.00030682,6]
[385853463,1758060638011,-400.0,0.00030682,6]
[385853464,1758060638020,-471.65,0.00030682,6]
[385853465,1758060638029,-400.0,0.00030683,6]
[385853466,1758060638038,-400.0,0.00030683,6]
[385853467,1758060638048,-400.0,0.00030683,6]
[385853468,1758060638057,-400.0,0.00030683,6]
[385853469,1758060638066,-400.0,0.00030683,6]
[385853470,1758060638076,-400.0,0.00030683,6]
[385853471,1758060638086,-400.0,0.00030683,6]
[385853472,1758060638095,-193.39965019,0.00030683,6]
[385853473,1758060638104,-400.0,0.00030683,6]
[385853474,1758060638114,-400.0,0.00030683,6]
[385853475,1758060638123,-400.0,0.00030683,6]
[385853476,1758060638132,-400.0,0.00030683,6]
[385853477,1758060638142,-520.63,0.00030683,6]
[385853478,1758060638153,-400.0,0.00030683,6]
[385853479,1758060638164,-808.39,0.00030683,6]
[385853480,1758060638173,-400.0,0.00030683,6]
[385853481,1758060638182,-400.0,0.00030683,6]
[385853483,1758060638192,-400.0,0.00030683,6]
[385853485,1758060638202,-400.0,0.00030683,6]
[385853486,1758060638211,-400.0,0.00030683,6]
[385853487,1758060638220,-400.0,0.00030683,6]
[385853488,1758060638230,-400.0,0.00030683,6]
[385853489,1758060638240,-400.0,0.00030683,6]
[385853491,1758060638249,-408.12589441,0.00030683,6]
[385853493,1758060638258,-400.0,0.00030683,6]
[385853495,1758060638268,-400.0,0.00030683,6]
[385853497,1758060638277,-400.0,0.00030683,6]
[385853499,1758060638286,-497.62343384,0.00030683,6]
[385853501,1758060638295,-400.0,0.00030683,6]
[385853503,1758060638305,-400.0,0.00030683,6]
[385853505,1758060638314,-400.0,0.00030683,6]
[385853507,1758060638323,-400.0,0.00030683,6]
[385853509,1758060638332,-400.0,0.00030683,6]
[385853511,1758060638342,-400.0,0.00030683,6]
[385853513,1758060638352,-400.0,0.00030683,6]
[385853515,1758060638362,-400.0,0.00030683,6]
[385853517,1758060638371,-400.0,0.00030683,6]
[385853518,1758060638379,-400.0,0.00030683,6]
[385853519,1758060638389,-400.0,0.00030683,6]
[385853521,1758060638398,-401.94,0.00030683,6]
[385853522,1758060638406,-306.17781305,0.00030683,6]
[385853523,1758060638418,-93.82218695,0.00030683,6]
[385853524,1758060638427,-400.0,0.00030683,6]
[385853525,1758060638436,-241.17736717,0.00030684,6]
[385853526,1758060638445,-400.0,0.00030684,6]
[385853527,1758060638454,-400.0,0.00030684,6]
[385853528,1758060638463,-400.0,0.00030684,6]
[385853530,1758060638474,-400.0,0.00030684,6]
[385853532,1758060638484,-400.0,0.00030684,6]
[385853534,1758060638493,-400.0,0.00030684,6]